bitfinex-derivatives/quotes_BTCF0:USTF0_20260314
["timestamp","ask_amount","ask_price","bid_price","bid_amount"]
[1773496194467,0.042322,70874.0,70861.0,0.1687807]
[1773496195475,0.042322,70874.0,70861.0,0.1697807]
[1773496197686,0.042322,70874.0,70861.0,0.1687807]
[1773496200277,0.042323,70873.0,70861.0,0.1687807]
[1773496200980,0.042323,70872.0,70861.0,0.1687807]
[1773496201181,0.07356182,70871.0,70853.0,0.25283289]
[1773496201382,0.00373,70883.0,70828.0,0.31044]
[1773496201383,0.07356182,70863.0,70854.0,0.0014]
[1773496201584,0.07356182,70863.0,70855.0,0.0014]
[1773496201881,0.07356182,70863.0,70850.0,0.042336]
[1773496202082,0.07356182,70863.0,70851.0,0.0014]
[1773496202686,0.042328,70864.0,70854.0,0.001]
[1773496202882,0.042328,70864.0,70855.0,0.001]
[1773496203289,0.042327,70866.0,70855.0,0.001]
[1773496203587,0.042327,70866.0,70854.0,0.001]
[1773496203787,0.042327,70865.0,70854.0,0.001]
[1773496204180,0.042327,70865.0,70852.0,0.042334]
[1773496204886,0.042327,70865.0,70854.0,0.001]
[1773496205283,0.042327,70865.0,70852.0,0.042334]
[1773496205488,0.042328,70864.0,70852.0,0.001]
[1773496206690,0.042328,70864.0,70853.0,0.0014]
[1773496207189,0.042328,70864.0,70854.0,0.001]
[1773496207592,0.042328,70864.0,70853.0,0.0014]
[1773496208695,0.02237752,70863.0,70852.0,0.0014]
[1773496212898,0.02237752,70863.0,70853.0,0.042334]
[1773496213197,0.042327,70865.0,70853.0,0.042334]
[1773496215301,0.042327,70865.0,70853.0,0.043334]
[1773496219494,0.042328,70864.0,70853.0,0.001]
[1773496221606,0.02542344,70862.0,70843.0,0.25283289]
[1773496221808,0.042331,70859.0,70842.0,0.25283289]
[1773496222007,0.06775444,70859.0,70843.0,0.0014]
[1773496222202,0.06775444,70859.0,70844.0,0.0014]
[1773496222409,0.06775444,70859.0,70847.0,0.042338]
[1773496222802,0.06775444,70859.0,70848.0,0.0014]
[1773496223607,0.06775444,70859.0,70847.0,0.042338]
[1773496223808,0.06775444,70859.0,70848.0,0.0014]
[1773496224008,0.06775444,70859.0,70848.0,0.0024]
[1773496224918,0.042331,70859.0,70848.0,0.0024]
[1773496226108,0.042331,70859.0,70848.0,0.001]
[1773496226308,0.042331,70859.0,70848.0,0.0024]
[1773496226509,0.042331,70859.0,70848.0,0.0034]
[1773496227107,0.042331,70859.0,70848.0,0.002]
[1773496227313,0.042331,70859.0,70848.0,0.0034]
[1773496228210,0.042331,70859.0,70848.0,0.002]
[1773496231713,0.06775444,70859.0,70848.0,0.002]
[1773496233217,0.042332,70858.0,70848.0,0.002]
[1773496234220,0.042332,70858.0,70846.0,0.0014]
[1773496234519,0.042332,70858.0,70848.0,0.002]
[1773496235214,0.042332,70858.0,70848.0,0.001]
[1773496236418,0.042332,70858.0,70846.0,0.0024]
[1773496236609,0.042332,70858.0,70846.0,0.0034]
[1773496237018,0.042332,70858.0,70848.0,0.001]
[1773496237520,0.04233,70860.0,70848.0,0.02553785]
[1773496238019,0.04233,70860.0,70848.0,0.02653785]
[1773496238817,0.04233,70860.0,70848.0,0.02553785]
[1773496239411,0.04233,70860.0,70848.0,0.02453785]
[1773496239722,0.04233,70860.0,70848.0,0.02553785]
[1773496244320,0.04233,70860.0,70848.0,0.02453785]
[1773496248522,0.04233,70860.0,70846.0,0.0014]
[1773496248523,0.042326,70868.0,70851.0,0.02453785]
[1773496248719,0.0014,70875.0,70856.0,0.02453785]
[1773496248919,0.0014,70874.0,70857.0,0.0014]
[1773496249323,0.042327,70865.0,70857.0,0.0014]
[1773496249629,0.042326,70867.0,70857.0,0.0014]
[1773496250624,0.042327,70865.0,70857.0,0.0014]
[1773496250825,0.04233,70861.0,70857.0,0.0014]
[1773496251015,0.0014,70872.0,70846.0,0.02281079]
[1773496251016,0.042331,70859.0,70846.0,0.042338]
[1773496251324,0.042331,70859.0,70847.0,0.0014]
[1773496251529,0.042331,70859.0,70848.0,0.0014]
[1773496251921,0.042331,70859.0,70846.0,0.042338]
[1773496252119,0.042331,70859.0,70847.0,0.0014]
[1773496252320,0.042331,70859.0,70846.0,0.042338]
[1773496252526,0.042332,70858.0,70847.0,0.0014]
[1773496252830,0.042332,70858.0,70848.0,0.001]
[1773496253032,0.042332,70858.0,70849.0,0.0014]
[1773496253330,0.042332,70858.0,70847.0,0.001]
[1773496253519,0.042332,70858.0,70848.0,0.0014]
[1773496254233,0.042332,70858.0,70847.0,0.001]
[1773496254434,0.042332,70858.0,70848.0,0.0014]
[1773496254823,0.042332,70858.0,70849.0,0.0014]
[1773496255233,0.042332,70858.0,70846.0,0.042338]
[1773496255422,0.042332,70858.0,70847.0,0.001]
[1773496255730,0.042332,70858.0,70848.0,0.0014]
[1773496255927,0.02461139,70859.0,70848.0,0.0014]
[1773496256231,0.02461139,70859.0,70849.0,0.0014]
[1773496256832,0.02461139,70859.0,70848.0,0.0014]
[1773496257037,0.042332,70857.0,70848.0,0.0014]
[1773496257934,0.042332,70857.0,70844.0,0.042339]
[1773496258231,0.02461139,70856.0,70837.0,0.35860992]
[1773496258425,0.02461139,70856.0,70838.0,0.0014]
[1773496259833,0.042337,70849.0,70838.0,0.0014]
[1773496260033,0.042337,70849.0,70838.0,0.0024]
[1773496261531,0.042336,70851.0,70838.0,0.044743]
[1773496262124,0.042336,70851.0,70838.0,0.045743]
[1773496262838,0.042336,70851.0,70838.0,0.044743]
[1773496263732,0.042336,70850.0,70838.0,0.044743]
[1773496264530,0.042336,70850.0,70838.0,0.0024]
[1773496264943,0.11592068,70850.0,70838.0,0.0024]
[1773496265241,0.11592068,70850.0,70838.0,0.0014]
[1773496265437,0.11592068,70850.0,70838.0,0.0024]
[1773496265839,0.042336,70850.0,70838.0,0.0024]
[1773496266638,0.042336,70850.0,70838.0,0.06843111]
[1773496267931,0.042335,70852.0,70840.0,0.042342]
[1773496268134,0.042336,70851.0,70839.0,0.02368811]
[1773496270340,0.02461139,70875.0,70844.0,0.042339]
[1773496270533,0.042329,70862.0,70846.0,0.02368811]
[1773496271943,0.042329,70862.0,70848.0,0.042337]
[1773496272438,0.042329,70862.0,70849.0,0.042336]
[1773496273444,0.042328,70864.0,70846.0,0.02468811]
[1773496273646,0.042328,70864.0,70847.0,0.02368811]
[1773496273833,0.042328,70864.0,70848.0,0.001]
[1773496274147,0.042329,70863.0,70850.0,0.042336]
[1773496274328,0.02461139,70869.0,70850.0,0.07358468]
[1773496274644,0.02461139,70869.0,70851.0,0.02368811]
[1773496275150,0.02461139,70869.0,70852.0,0.0014]
[1773496275629,0.02561139,70869.0,70852.0,0.0014]
[1773496276146,0.042327,70865.0,70852.0,0.043734]
[1773496278944,0.042328,70864.0,70852.0,0.043734]
[1773496280544,0.042327,70866.0,70852.0,0.043735]
[1773496281252,0.042327,70865.0,70852.0,0.043735]
[1773496285352,0.042328,70864.0,70852.0,0.043735]
[1773496289551,0.042328,70864.0,70853.0,0.02309697]
[1773496289754,0.13029902,70881.0,70853.0,0.02309697]
[1773496289755,0.042327,70866.0,70854.0,0.02309697]
[1773496293946,0.0014,70876.0,70857.0,0.02309697]
[1773496294157,0.0014,70876.0,70858.0,0.042331]
[1773496294356,0.0014,70876.0,70859.0,0.0014]
[1773496294953,0.042324,70871.0,70859.0,0.0014]
[1773496296056,0.042325,70870.0,70859.0,0.0014]
[1773496302266,0.042325,70869.0,70859.0,0.0014]
[1773496303361,0.042324,70871.0,70859.0,0.0014]
[1773496306668,0.042324,70871.0,70859.0,0.04373]
[1773496307671,0.042324,70870.0,70859.0,0.0014]
[1773496308258,0.06497653,70870.0,70859.0,0.0014]
[1773496309571,0.02265253,70870.0,70859.0,0.0014]
[1773496309866,0.02255108,70865.0,70860.0,0.0014]
[1773496310062,0.02255108,70865.0,70861.0,0.0014]
[1773496310370,0.02255108,70865.0,70844.0,0.02073687]
[1773496310371,0.02255108,70869.0,70858.0,0.0014]
[1773496311562,0.02255108,70869.0,70857.0,0.0014]
[1773496311965,0.0647823,70859.0,70853.0,0.0014]
[1773496312171,0.0224513,70858.0,70853.0,0.0014]
[1773496314176,0.0224513,70858.0,70850.0,0.0014]
[1773496314177,0.042333,70856.0,70850.0,0.0014]
[1773496315776,0.0647833,70858.0,70850.0,0.0014]
[1773496315978,0.042332,70858.0,70850.0,0.0014]
[1773496320672,0.042332,70857.0,70850.0,0.0014]
[1773496321678,0.042333,70856.0,70850.0,0.0014]
[1773496327681,0.042333,70855.0,70850.0,0.0014]
[1773496331584,0.0647843,70855.0,70850.0,0.0014]
[1773496331788,0.0224513,70854.0,70845.0,0.25312898]
[1773496332088,0.0647853,70854.0,70848.0,0.0014]
[1773496332285,0.042334,70854.0,70847.0,0.0014]
[1773496333192,0.042334,70854.0,70848.0,0.001]
[1773496333793,0.042334,70854.0,70847.0,0.0024]
[1773496334479,0.042338,70847.0,70835.0,0.042345]
[1773496334685,0.042338,70847.0,70835.0,0.043745]
[1773496335188,0.042338,70847.0,70835.0,0.042345]
[1773496335381,0.042338,70847.0,70836.0,0.0014]
[1773496335894,0.0224513,70849.0,70837.0,0.0014]
[1773496336090,0.042339,70845.0,70837.0,0.0014]
[1773496337182,0.042339,70845.0,70837.0,0.0024]
[1773496337980,0.0224513,70853.0,70837.0,0.0024]
[1773496338182,0.042338,70847.0,70837.0,0.0024]
[1773496338383,0.042338,70848.0,70837.0,0.0024]
[1773496339393,0.042338,70848.0,70837.0,0.0014]
[1773496339579,0.042339,70846.0,70837.0,0.0014]
[1773496340499,0.042339,70846.0,70831.0,0.00070591]
[1773496340797,0.042339,70846.0,70832.0,0.0014]
[1773496340991,0.042339,70846.0,70833.0,0.042346]
[1773496341192,0.042339,70846.0,70837.0,0.001]
[1773496341589,0.042339,70846.0,70837.0,0.0024]
[1773496342591,0.042339,70846.0,70834.0,0.042345]
[1773496342793,0.042339,70846.0,70835.0,0.0014]
[1773496343097,0.042339,70846.0,70834.0,0.042345]
[1773496343294,0.042339,70846.0,70835.0,0.0014]
[1773496343500,0.042339,70846.0,70837.0,0.001]
[1773496343687,0.042339,70846.0,70837.0,0.0024]
[1773496344088,0.042339,70846.0,70834.0,0.043345]
[1773496344288,0.042339,70846.0,70835.0,0.0014]
[1773496344590,0.042339,70846.0,70834.0,0.043345]
[1773496344787,0.042339,70846.0,70835.0,0.0014]
[1773496345193,0.042339,70846.0,70836.0,0.0014]
[1773496345897,0.042339,70846.0,70837.0,0.0014]
[1773496346200,0.042339,70846.0,70837.0,0.0024]
[1773496346395,0.06665983,70846.0,70837.0,0.001]
[1773496351401,0.07353983,70850.0,70833.0,0.0014]
[1773496351402,0.02432083,70848.0,70833.0,0.0014]
[1773496351606,0.02432083,70841.0,70833.0,0.0014]
[1773496351906,0.02432083,70841.0,70831.0,0.00070591]
[1773496352095,0.02432083,70841.0,70832.0,0.0014]
[1773496352489,0.02432083,70841.0,70833.0,0.001]
[1773496353205,0.02432083,70841.0,70832.0,0.0014]
[1773496353206,0.042342,70840.0,70832.0,0.0014]
[1773496353399,0.042342,70840.0,70832.0,0.0024]
[1773496355008,0.042342,70840.0,70832.0,0.0014]
[1773496357907,0.02432083,70854.0,70833.0,0.0242265]
[1773496358106,0.042337,70849.0,70833.0,0.0242265]
[1773496359113,0.042337,70849.0,70837.0,0.042343]
[1773496359308,0.042337,70849.0,70838.0,0.0014]
[1773496362408,0.042338,70848.0,70838.0,0.0014]
[1773496365321,0.042336,70850.0,70838.0,0.0014]
[1773496366215,0.042337,70849.0,70838.0,0.0014]
[1773496375416,0.042336,70851.0,70838.0,0.0014]
[1773496377020,0.042336,70851.0,70839.0,0.042342]
[1773496377222,0.0014,70862.0,70840.0,0.0736175]
[1773496377523,0.042333,70856.0,70843.0,0.04234]
[1773496378319,0.042333,70856.0,70844.0,0.0014]
[1773496385816,0.042334,70855.0,70844.0,0.0014]
[1773496386023,0.042335,70853.0,70844.0,0.0014]
[1773496386907,0.02257016,70859.0,70844.0,0.0014]
[1773496387121,0.042336,70851.0,70844.0,0.0014]
[1773496387319,0.06490616,70851.0,70839.0,0.042343]
[1773496387510,0.06490616,70851.0,70845.0,0.0014]
[1773496388007,0.06490616,70851.0,70839.0,0.042343]
[1773496388212,0.06490616,70851.0,70840.0,0.0014]
[1773496388507,0.02257016,70851.0,70836.0,0.25347612]
[1773496388716,0.06490816,70848.0,70837.0,0.0014]
[1773496389915,0.042338,70848.0,70837.0,0.0014]
[1773496390123,0.042338,70848.0,70837.0,0.0024]
[1773496390814,0.042336,70850.0,70837.0,0.043743]
[1773496391321,0.042335,70852.0,70839.0,0.042342]
[1773496392422,0.042336,70851.0,70839.0,0.042342]
[1773496393828,0.0014,70858.0,70840.0,0.0736175]
[1773496394124,0.02257016,70859.0,70840.0,0.0736175]
[1773496394515,0.02257016,70859.0,70840.0,0.09522732]
[1773496394715,0.02257016,70859.0,70841.0,0.02160982]
[1773496394920,0.02257016,70865.0,70841.0,0.02160982]
[1773496395325,0.02257016,70865.0,70844.0,0.042339]
[1773496395623,0.02257016,70865.0,70845.0,0.0014]
[1773496396428,0.02257016,70863.0,70845.0,0.0014]
[1773496397110,0.042332,70858.0,70845.0,0.0014]
[1773496397613,0.042332,70857.0,70845.0,0.0014]
[1773496399824,0.02257016,70879.0,70854.0,0.042333]
[1773496400123,0.02257016,70874.0,70855.0,0.0014]
[1773496400831,0.02257016,70874.0,70856.0,0.25347612]
[1773496401224,0.042323,70872.0,70860.0,0.0736175]
[1773496401726,0.042324,70871.0,70861.0,0.0014]
[1773496404619,0.042324,70870.0,70861.0,0.0014]
[1773496411216,0.042323,70872.0,70861.0,0.0014]
[1773496411437,0.02062049,70879.0,70861.0,0.0014]
[1773496411617,0.0014,70881.0,70849.0,0.25347612]
[1773496411618,0.02062049,70870.0,70849.0,0.25347612]
[1773496411822,0.0014,70881.0,70850.0,0.0014]
[1773496411823,0.02062049,70858.0,70850.0,0.0014]
[1773496412132,0.06295249,70858.0,70851.0,0.0014]
[1773496412329,0.02062049,70858.0,70843.0,0.04607]
[1773496412535,0.02062049,70858.0,70844.0,0.0014]
[1773496412724,0.02062049,70858.0,70845.0,0.0014]
[1773496413125,0.02062049,70858.0,70846.0,0.0014]
[1773496413324,0.02062049,70858.0,70847.0,0.0014]
[1773496413728,0.02062049,70858.0,70843.0,0.04234]
[1773496413931,0.042333,70856.0,70844.0,0.0014]
[1773496414431,0.042333,70856.0,70845.0,0.0014]
[1773496414821,0.042333,70856.0,70846.0,0.0014]
[1773496415518,0.042333,70856.0,70843.0,0.04234]
[1773496415732,0.042333,70856.0,70844.0,0.0014]
[1773496416121,0.042333,70856.0,70845.0,0.0014]
[1773496416532,0.042333,70856.0,70843.0,0.04234]
[1773496416834,0.042333,70856.0,70844.0,0.0014]
[1773496417022,0.042334,70855.0,70845.0,0.0014]
[1773496417433,0.042334,70855.0,70843.0,0.04234]
[1773496417726,0.042334,70855.0,70846.0,0.0014]
[1773496418626,0.02062049,70867.0,70846.0,0.02319632]
[1773496418829,0.042329,70862.0,70848.0,0.042337]
[1773496419132,0.042329,70862.0,70849.0,0.042336]
[1773496420428,0.042329,70862.0,70850.0,0.042336]
[1773496420732,0.042328,70864.0,70850.0,0.042336]
[1773496422829,0.042328,70864.0,70850.0,0.11590256]
[1773496423433,0.042328,70864.0,70846.0,0.27667244]
[1773496424931,0.042328,70864.0,70850.0,0.043336]
[1773496425333,0.042328,70864.0,70850.0,0.042336]
[1773496426132,0.042328,70864.0,70850.0,0.043336]
[1773496426434,0.07356656,70880.0,70857.0,0.042332]
[1773496426435,0.02062049,70871.0,70857.0,0.042332]
[1773496426635,0.02062049,70871.0,70858.0,0.0014]
[1773496427736,0.02162049,70871.0,70858.0,0.0014]
[1773496427939,0.042325,70869.0,70858.0,0.0014]
[1773496429329,0.043325,70869.0,70858.0,0.0014]
[1773496436038,0.042326,70868.0,70858.0,0.0014]
[1773496437552,0.043326,70868.0,70858.0,0.0014]
[1773496441754,0.06485998,70868.0,70858.0,0.0014]
[1773496442543,0.06485998,70868.0,70859.0,0.0014]
[1773496442944,0.06485998,70868.0,70855.0,0.042333]
[1773496443253,0.06485998,70868.0,70856.0,0.0014]
[1773496443452,0.06485998,70868.0,70855.0,0.042333]
[1773496443751,0.06485998,70868.0,70856.0,0.0014]
[1773496443954,0.06485998,70868.0,70855.0,0.042333]
[1773496444252,0.06485998,70868.0,70857.0,0.0014]
[1773496444448,0.06485998,70868.0,70855.0,0.042333]
[1773496444653,0.06485998,70868.0,70858.0,0.0014]
[1773496444844,0.06485998,70868.0,70855.0,0.042333]
[1773496445045,0.06385998,70868.0,70856.0,0.043732]
[1773496446443,0.06385998,70868.0,70857.0,0.042332]
[1773496446444,0.02153398,70868.0,70857.0,0.042332]
[1773496446646,0.042324,70870.0,70857.0,0.042332]
[1773496447857,0.042325,70869.0,70857.0,0.042332]
[1773496448055,0.02153398,70878.0,70859.0,0.07356656]
[1773496448354,0.02153398,70882.0,70861.0,0.01943776]
[1773496448658,0.02153398,70882.0,70861.0,0.25347612]
[1773496449358,0.02153398,70882.0,70862.0,0.0014]
[1773496449746,0.042318,70881.0,70863.0,0.27291388]
[1773496449945,0.0014,70886.0,70866.0,0.042326]
[1773496449946,0.042318,70880.0,70866.0,0.042326]
[1773496450148,0.042318,70880.0,70868.0,0.042325]
[1773496450354,0.042318,70880.0,70869.0,0.0014]
[1773496450744,0.001,70878.0,70869.0,0.0014]
[1773496451355,0.042318,70880.0,70869.0,0.0014]
[1773496451557,0.043318,70880.0,70869.0,0.0014]
[1773496452256,0.042317,70882.0,70869.0,0.043724]
[1773496452660,0.00373,70883.0,70870.0,0.07356656]
[1773496452957,0.001,70878.0,70870.0,0.07356656]
[1773496453157,0.046047,70883.0,70870.0,0.07356656]
[1773496453459,0.046047,70883.0,70869.0,0.043725]
[1773496453961,0.001,70882.0,70869.0,0.043725]
[1773496454459,0.001,70880.0,70869.0,0.043725]
[1773496455055,0.001,70882.0,70870.0,0.042324]
[1773496455456,0.001,70882.0,70874.0,0.042321]
[1773496455766,0.001,70882.0,70875.0,0.0014]
[1773496456254,0.002,70882.0,70875.0,0.0014]
[1773496456656,0.001,70882.0,70875.0,0.0014]
[1773496456864,0.001,70880.0,70875.0,0.0014]
[1773496457071,0.001,70882.0,70875.0,0.0014]
[1773496457664,0.002,70882.0,70875.0,0.0014]
[1773496458259,0.00373,70883.0,70875.0,0.0014]
[1773496458460,0.001,70882.0,70875.0,0.0014]
[1773496460158,0.00373,70883.0,70875.0,0.0014]
[1773496463760,0.042314,70888.0,70875.0,0.02121036]
[1773496464761,0.042314,70888.0,70880.0,0.00373]
[1773496464962,0.01959954,70904.0,70885.0,0.01981036]
[1773496465162,0.01959954,70904.0,70886.0,0.0014]
[1773496466660,0.001,70904.0,70886.0,0.0014]
[1773496467167,0.042307,70900.0,70886.0,0.0014]
[1773496467367,0.042307,70900.0,70886.0,0.02121036]
[1773496467662,0.00373,70896.0,70886.0,0.02121036]
[1773496468264,0.00373,70896.0,70888.0,0.042313]
[1773496468460,0.042306,70901.0,70888.0,0.042313]
[1773496469659,0.001,70900.0,70888.0,0.042313]
[1773496470370,0.042306,70901.0,70888.0,0.042313]
[1773496470761,0.042307,70900.0,70888.0,0.042313]
[1773496474871,0.042308,70898.0,70886.0,0.043714]
[1773496475070,0.042308,70898.0,70886.0,0.0014]
[1773496485779,0.042308,70898.0,70886.0,0.043714]
[1773496487467,0.042308,70897.0,70886.0,0.0014]
[1773496489280,0.042308,70897.0,70886.0,0.16964982]
[1773496490384,0.042307,70899.0,70887.0,0.042314]
[1773496490977,0.042307,70899.0,70886.0,0.16964982]
[1773496491172,0.042307,70899.0,70886.0,0.16988845]
[1773496492186,0.042307,70899.0,70887.0,0.16848845]
[1773496492388,0.042307,70899.0,70886.0,0.16988845]
[1773496493179,0.042307,70899.0,70887.0,0.16848845]
[1773496494179,0.042307,70899.0,70888.0,0.16848845]
[1773496496380,0.042307,70899.0,70889.0,0.16848845]
[1773496501483,0.042308,70898.0,70889.0,0.16848845]
[1773496504093,0.00373,70902.0,70890.0,0.01839946]
[1773496504290,0.042301,70909.0,70895.0,0.01839946]
[1773496504487,0.042302,70908.0,70897.0,0.01839946]
[1773496506296,0.042302,70908.0,70901.0,0.00373]
[1773496507090,0.00373,70904.0,70901.0,0.00373]
[1773496508200,0.042302,70908.0,70901.0,0.00373]
[1773496508500,0.042302,70908.0,70897.0,0.01839946]
[1773496509901,0.042302,70907.0,70897.0,0.01839946]
[1773496510588,0.03524561,70907.0,70897.0,0.01839946]
[1773496512201,0.042299,70913.0,70901.0,0.01839946]
[1773496512990,0.0014,70918.0,70902.0,0.01839946]
[1773496513300,0.01979206,70925.0,70902.0,0.01839946]
[1773496513301,0.042297,70916.0,70904.0,0.01839946]
[1773496513701,0.042298,70915.0,70904.0,0.01839946]
[1773496515597,0.042298,70914.0,70904.0,0.01839946]
[1773496519007,0.042297,70916.0,70904.0,0.01839946]
[1773496524015,0.042297,70916.0,70903.0,0.042304]
[1773496524016,0.07488937,70920.0,70902.0,0.0014]
[1773496524217,0.0193024,70918.0,70902.0,0.0014]
[1773496524516,0.0193024,70917.0,70902.0,0.0014]
[1773496525017,0.042298,70915.0,70902.0,0.043705]
[1773496527213,0.042298,70915.0,70903.0,0.042304]
[1773496533930,0.042298,70914.0,70903.0,0.042304]
[1773496534127,0.0014,70920.0,70902.0,0.0014]
[1773496534128,0.0193024,70918.0,70902.0,0.0014]
[1773496534332,0.0423,70910.0,70902.0,0.0014]
[1773496534827,0.0423,70910.0,70900.0,0.16848845]
[1773496537136,0.042301,70909.0,70900.0,0.16848845]
[1773496537439,0.042301,70909.0,70901.0,0.16848845]
[1773496541540,0.042301,70909.0,70902.0,0.16848845]
[1773496542037,0.042301,70909.0,70901.0,0.16848845]
[1773496542337,0.042301,70909.0,70902.0,0.16848845]
[1773496542739,0.042302,70908.0,70902.0,0.16848845]
[1773496543325,0.0193024,70911.0,70896.0,0.17241084]
[1773496543525,0.0193024,70908.0,70896.0,0.00373]
[1773496543738,0.0014,70907.0,70896.0,0.00373]
[1773496543938,0.0014,70907.0,70888.0,0.25347612]
[1773496544139,0.0014,70907.0,70887.0,0.01748979]
[1773496544140,0.0207024,70907.0,70889.0,0.0014]
[1773496544538,0.042306,70901.0,70887.0,0.05980379]
[1773496544739,0.042306,70901.0,70888.0,0.0014]
[1773496545625,0.00373,70899.0,70888.0,0.0014]
[1773496545942,0.00373,70899.0,70888.0,0.0024]
[1773496546341,0.042306,70901.0,70888.0,0.0024]
[1773496547236,0.042306,70901.0,70888.0,0.0034]
[1773496547436,0.042307,70900.0,70888.0,0.0034]
[1773496548232,0.042307,70900.0,70888.0,0.0024]
[1773496548838,0.0230324,70905.0,70888.0,0.0024]
[1773496549947,0.042307,70899.0,70888.0,0.0024]
[1773496550843,0.042307,70899.0,70888.0,0.0014]
[1773496552051,0.042307,70899.0,70888.0,0.02049975]
[1773496554255,0.042307,70899.0,70882.0,0.25347612]
[1773496554256,0.07350139,70900.0,70885.0,0.042315]
[1773496554751,0.0187081,70904.0,70885.0,0.042315]
[1773496555353,0.00373,70905.0,70885.0,0.01909975]
[1773496555653,0.00373,70905.0,70885.0,0.02009975]
[1773496556449,0.042307,70900.0,70888.0,0.042313]
[1773496556645,0.042307,70900.0,70888.0,0.043713]
[1773496561158,0.042307,70900.0,70888.0,0.0014]
[1773496562260,0.0014,70901.0,70889.0,0.01909975]
[1773496562857,0.043706,70901.0,70889.0,0.01909975]
[1773496563555,0.042306,70901.0,70889.0,0.01909975]
[1773496564553,0.042306,70901.0,70889.0,0.01663288]
[1773496565857,0.042307,70900.0,70888.0,0.043713]
[1773496570660,0.042307,70900.0,70888.0,0.06281275]
[1773496571051,0.042307,70900.0,70889.0,0.01909975]
[1773496577261,0.042307,70899.0,70889.0,0.01909975]
[1773496577859,0.042308,70898.0,70888.0,0.0014]
[1773496594469,0.0238381,70905.0,70888.0,0.0014]
[1773496594776,0.042309,70896.0,70888.0,0.0014]
[1773496595375,0.0190412,70899.0,70879.0,0.31626692]
[1773496595674,0.042312,70890.0,70880.0,0.0014]
[1773496596070,0.042312,70890.0,70881.0,0.0014]
[1773496596570,0.042312,70890.0,70882.0,0.0014]
[1773496596772,0.042311,70892.0,70882.0,0.0014]
[1773496596971,0.042311,70892.0,70880.0,0.042318]
[1773496597170,0.042311,70892.0,70881.0,0.0014]
[1773496600267,0.042312,70891.0,70881.0,0.0014]
[1773496600670,0.042312,70890.0,70881.0,0.0014]
[1773496604677,0.042313,70889.0,70881.0,0.0014]
[1773496605181,0.042313,70889.0,70880.0,0.0014]
[1773496605581,0.042313,70889.0,70880.0,0.00120006]
[1773496606973,0.042313,70889.0,70876.0,0.04232]
[1773496607174,0.042313,70889.0,70877.0,0.0014]
[1773496607582,0.042313,70889.0,70878.0,0.0014]
[1773496609470,0.042313,70889.0,70876.0,0.04232]
[1773496609675,0.042313,70889.0,70877.0,0.0014]
[1773496610979,0.042313,70889.0,70876.0,0.04232]
[1773496611283,0.042313,70889.0,70877.0,0.0014]
[1773496616986,0.01753748,70894.0,70877.0,0.0014]
[1773496617989,0.0014,70896.0,70877.0,0.0014]
[1773496618184,0.01753748,70895.0,70875.0,0.042321]
[1773496618386,0.01753748,70895.0,70876.0,0.0014]
[1773496618591,0.042317,70883.0,70874.0,0.0014]
[1773496619690,0.042317,70882.0,70874.0,0.0014]
[1773496619891,0.042317,70882.0,70874.0,0.0024]
[1773496620593,0.042317,70882.0,70875.0,0.001]
[1773496621189,0.042317,70882.0,70874.0,0.0024]
[1773496622295,0.042317,70882.0,70874.0,0.0014]
[1773496624597,0.042318,70881.0,70874.0,0.0014]
[1773496625598,0.042317,70883.0,70874.0,0.0014]
[1773496630982,0.01753748,70895.0,70874.0,0.01991968]
[1773496631183,0.042309,70896.0,70881.0,0.01851968]
[1773496631489,0.042309,70896.0,70882.0,0.01991968]
[1773496632292,0.0014,70906.0,70886.0,0.09203204]
[1773496632496,0.20014596,70904.0,70890.0,0.07351236]
[1773496632693,0.01753748,70908.0,70890.0,0.07351236]
[1773496632694,0.20014596,70903.0,70890.0,0.07491236]
[1773496632893,0.00373,70905.0,70890.0,0.0014]
[1773496633097,0.00513,70905.0,70890.0,0.0014]
[1773496633908,0.01753748,70908.0,70890.0,0.0014]
[1773496634097,0.042306,70902.0,70890.0,0.0014]
[1773496634401,0.042305,70903.0,70891.0,0.042311]
[1773496635494,0.042305,70903.0,70890.0,0.07491236]
[1773496635992,0.042306,70901.0,70890.0,0.07491236]
[1773496636904,0.042306,70901.0,70890.0,0.0014]
[1773496641908,0.042307,70900.0,70890.0,0.0014]
[1773496648909,0.042305,70902.0,70891.0,0.042311]
[1773496651711,0.00373,70905.0,70891.0,0.042311]
[1773496652310,0.00373,70905.0,70890.0,0.07491236]
[1773496652510,0.00373,70905.0,70890.0,0.0014]
[1773496653910,0.042306,70901.0,70890.0,0.0014]
[1773496668931,0.042305,70903.0,70890.0,0.11719132]
[1773496671730,0.042305,70902.0,70890.0,0.11719132]
[1773496675728,0.042305,70902.0,70890.0,0.043712]
[1773496676236,0.042305,70902.0,70890.0,0.29670366]
[1773496680641,0.042304,70904.0,70891.0,0.042311]
[1773496680940,0.042304,70904.0,70894.0,0.01722873]
[1773496682737,0.00373,70905.0,70894.0,0.05953873]
[1773496683548,0.00373,70905.0,70895.0,0.042309]
[1773496683729,0.0014,70916.0,70893.0,0.01722873]
[1773496683937,0.042301,70909.0,70897.0,0.01722873]
[1773496684132,0.0014,70915.0,70898.0,0.0014]
[1773496684437,0.042299,70912.0,70900.0,0.042306]
[1773496685942,0.0423,70911.0,70898.0,0.043707]
[1773496686143,0.0423,70911.0,70905.0,0.00373]
[1773496686847,0.00373,70907.0,70905.0,0.00373]
[1773496687145,0.00032997,70907.0,70905.0,0.00373]
[1773496687335,0.0423,70911.0,70905.0,0.00373]
[1773496687534,0.0423,70911.0,70899.0,0.042307]
[1773496688447,0.0423,70911.0,70899.0,0.046037]
[1773496690647,0.0423,70911.0,70899.0,0.06326573]
[1773496695752,0.0163011,70919.0,70899.0,0.02095873]
[1773496696054,0.042299,70913.0,70902.0,0.042305]
[1773496696951,0.042299,70913.0,70900.0,0.13301405]